Cogmind - Beta 11 X8 @@@ ROGUE MODE // 2021.10.23 @ 00:45:33 Player: Runia Result: Destroyed by 8R-AWN with 8R-AWN's Boregun Performance ------------- Evolutions (0) 0 Regions Visited (3) 600 Robots Destroyed (27) 135 Value Destroyed (716) 716 Prototype IDs (4) 80 Alien Tech Used (0) 0 Bonus (0) 0 TOTAL SCORE: 1531 Bonus ------- None Cogmind --------- Core Integrity 0/250 Matter 300/300 Energy 250/250 System Corruption 0% Temperature Cool (0) Movement Treading (160) Location -10/Exiles Parts ------- > --- POWER (1) -------- Ion Engine > --- PROPULSION (2) --- Light Treads Light Treads > --- UTILITY (2) ------ Large Storage Unit > --- WEAPON (2) ------- (None) > --- INVENTORY (15) --- Light Treads Armored Wheel Light Armor Plating Grenade Launcher Grenade Launcher Grenade Launcher Peak State ------------ > --- POWER ------------ Improved Ion Engine > --- PROPULSION ------- Light Treads Armored Wheel > --- UTILITY ---------- Large Storage Unit Light Armor Plating > --- WEAPON ----------- Light Assault Rifle Heavy Assault Rifle > --- INVENTORY -------- Ion Engine Reinforced Deuterium Engine Fission Core Light Fission Core Light Treads Light Treads Light Treads Improved Treads Improved Treads Medium Armor Plating Medium Armor Plating Medium Armor Plating Grenade Launcher Grenade Launcher Grenade Launcher [Rating: 13] Favorites ----------- Power Improved Ion Engine Engine Improved Ion Engine Propulsion Improved Treads Treads Improved Treads Leg Aluminum Leg Wheel Armored Wheel Utility Large Storage Unit Storage Large Storage Unit Protection Light Armor Plating Weapon Light Assault Rifle Ballistic Gun Light Assault Rifle Launcher Grenade Launcher Build | -11 -10 -10 -10 ------- Run | Scr Mat Min Exi Slots Evolved . | . . . . Power . | . . . . Propulsion . | . . . . Utility . | . . . . Weapon . | . . . . Parts Attached 37 | . 13 11 13 Power 3 | . 1 1 1 Engine 3 | . 1 1 1 Core . | . . . . Reactor . | . . . . Propulsion 10 | . 2 2 6 Treads 9 | . 2 2 5 Leg . | . . . . Wheel 1 | . . . 1 Hover . | . . . . Flight . | . . . . Utility 8 | . 3 1 4 Device . | . . . . Storage 1 | . 1 . . Processor . | . . . . Hackware . | . . . . Protection 7 | . 2 1 4 Artifact . | . . . . Weapon 16 | . 7 7 2 Energy Gun . | . . . . Energy Cannon . | . . . . Ballistic Gun 9 | . 4 4 1 Ballistic Cannon . | . . . . Launcher 7 | . 3 3 1 Special Weapon . | . . . . Impact Weapon . | . . . . Slashing Weapon . | . . . . Piercing Weapon . | . . . . Special Melee Weapon . | . . . . Unidentified Prototypes . | . . . . Parts Lost 11 | . 1 1 9 Power 2 | . 1 . 1 Propulsion 4 | . . 1 3 Utility 3 | . . . 3 Weapon 2 | . . . 2 Highest Loss Streak 9 | . 1 1 9 Average Slot Usage (%) 96 | . 94 100 95 Engine 13 | . 13 14 14 Treads 25 | . 24 28 22 Leg 1 | . 3 . . Wheel 1 | . . . 5 Storage 14 | . 14 14 14 Protection 11 | . 9 14 13 Ballistic Gun 26 | . 27 27 23 Naked Turns . | . . . . Heaviest Build 36 | 10 34 36 36 Greatest Support 46 | 20 46 46 46 Greatest Overweight (x) 2 | . . 1 2 Average Overweight (x) . | . . . 1 Largest Inventory Capacity 15 | 8 15 15 15 Average Capacity 13 | 8 10 15 15 Most Carried 15 | 6 15 15 15 Average Carried 11 | 6 9 14 12 Final Capacity 15 | 8 15 15 15 Final Carried 15 | 6 14 15 6 Class Distribution -------------------- 70% | Mutant 29% | Scavenger-Mutant Dominant Class ---------------- Mutant | -10/Materials Scavenger-Mutant | -10/Mines Mutant | -10/Exiles Resources | -11 -10 -10 -10 ----------- Run | Scr Mat Min Exi Matter Collected 1110 | 185 270 173 482 Remotely . | . . . . Salvage Created 1070 | . 781 284 5 Parts 65 | . 45 20 . Haulers Intercepted 2 | . 2 . . Recyclers Shooed 2 | . 2 . . Parts Field Recycled . | . . . . Retrieved Matter . | . . . . Parts Self-Destructed . | . . . . Prevented . | . . . . Kills | -11 -10 -10 -10 ------- Run | Scr Mat Min Exi Combat Hostiles Destroyed 22 | . 9 9 4 Guns 11 | . 7 4 . AOE 11 | . 2 5 4 Classes Destroyed 9 | . 6 2 1 Worker 1 | . 1 . . Tunneler 1 | . . 1 . Hauler 2 | . 2 . . Recycler 4 | . 4 . . Watcher 1 | . 1 . . Swarmer 3 | . 3 . . Grunt 13 | . 6 7 . Sentry 2 | . . 2 . Assembled 4 | . . . 4 Best Kill Streak 8 | . 8 3 4 Combat Bots Only 4 | . 3 3 4 Max Kills in Single Turn 2 | . 1 2 2 Gunslinging . | . . . . Exploded 2 | . 1 2 2 Melee . | . . . . Uniques/NPCs Destroyed . | . . . . Combat | -11 -10 -10 -10 -------- Run | Scr Mat Min Exi Damage Taken 2183 | . 393 452 1338 Core 253 | . 22 15 216 Absorbed by Shields . | . . . . Core Remaining (%) 100 | 100 . . . Volleys Fired 111 | . 55 26 30 Largest 2 | . 2 2 2 Hottest 43 | . 40 43 43 Shots Fired 180 | . 100 43 37 Gun 157 | . 90 34 33 Cannon . | . . . . Launcher 23 | . 10 9 4 Special . | . . . . Kinetic 157 | . 90 34 33 Thermal . | . . . . Explosive 13 | . . 9 4 Electromagnetic 10 | . 10 . . Robot Hit Streak 14 | . 14 13 12 Robot Miss Streak 2 | . 2 2 1 Penetration Max . | . . . . Secondary Targets . | . . . . Shots Hit Robots 127 | . 67 30 30 Core Hits 72 | . 34 26 12 Critical Kills . | . . . . Critical Parts Destroyed . | . . . . Critical Strikes . | . . . . Melee Attacks . | . . . . Impact . | . . . . Slashing . | . . . . Piercing . | . . . . Sneak Attacks . | . . . . Combat Hostiles . | . . . . Follow-up Attacks . | . . . . Damage Inflicted 2135 | . 738 685 712 Guns 1111 | . 525 219 367 Cannons . | . . . . Explosions 915 | . 213 466 236 Melee . | . . . . Ramming 109 | . . . 109 Kinetic 1111 | . 525 219 367 Thermal . | . . . . Explosive 702 | . . 466 236 Electromagnetic 213 | . 213 . . Impact . | . . . . Slashing . | . . . . Piercing . | . . . . Highest Corruption . | . . . . Average Corruption . | . . . . Corruption Purged . | . . . . Overload Shots . | . . . . Overflow Damage 30 | . . . 30 Projectiles . | . . . . Explosions 30 | . . . 30 Melee . | . . . . Knockbacks . | . . . . Impact . | . . . . Kinetic . | . . . . Secondary . | . . . . Self-Inflicted Damage 7 | . 7 . . Shots 1 | . 1 . . Rammed 43 | . . . 43 Targets Rammed 43 | . . . 43 Kicked . | . . . . Crushed . | . . . . Highest Temperature 36 | . 22 36 20 Average Temperature 12 | . 7 15 9 Received Heat Transfer 357 | . 174 183 . Siege Activations . | . . . . Robots Corrupted . | . . . . Combat Hostiles . | . . . . Parts Fried . | . . . . Impact Corruptions . | . . . . Robots Melted . | . . . . Combat Hostiles . | . . . . Parts Melted . | . . . . Heat Transferred . | . . . . Parts Sabotaged . | . . . . Parts Stolen . | . . . . Parts Stripped . | . . . . Power Chain Reactions 1 | . 1 . . Missiles Intercepted . | . . . . Alert | -11 -10 -10 -10 ------- Run | Scr Mat Min Exi Peak Influence 286 | . 286 211 . Initial 21 | . . 21 . Average 140 | . 149 128 . Maximum Alert Level 1 | . 1 1 . Low Security (%) 70 | 100 69 71 . Level 1 29 | . 30 28 . Level 2 . | . . . . Level 3 . | . . . . Level 4 . | . . . . Level 5 . | . . . . High Security . | . . . . Max Security . | . . . . Squads Dispatched 3 | . 3 . . Investigation 3 | . 3 . . Extermination . | . . . . Reinforcement . | . . . . Assault . | . . . . Garrison . | . . . . Intercept . | . . . . Construction Impeded . | . . . . Haulers Reinforced . | . . . . Active Scanning Responses . | . . . . Cargo Convoy Interrupts . | . . . . Stealth | -11 -10 -10 -10 --------- Run | Scr Mat Min Exi Distress Signals 1 | . 1 . . Communications Jammed . | . . . . Distress Signals . | . . . . Times Spotted 27 | . 13 9 5 Peak Tracking Total 9 | . 4 3 9 Tactical Retreats . | . . . . Traps | -11 -10 -10 -10 ------- Run | Scr Mat Min Exi Traps Triggered 2 | . 2 . . Indirectly 2 | . 2 . . Trap Hack Attempts . | . . . . Triggered . | . . . . Disarmed . | . . . . Reprogrammed . | . . . . Reused . | . . . . Traps Extracted . | . . . . Installed . | . . . . Triggered . | . . . . Exploded 3 | . . . 3 Machines | -11 -10 -10 -10 ---------- Run | Scr Mat Min Exi Machines Disabled 6 | . 2 3 1 Max in Single Turn 3 | . 2 3 1 Machines Sabotaged . | . . . . Garrisons Compromised . | . . . . Overloaded Fab Kills . | . . . . Hacking | -11 -10 -10 -10 --------- Run | Scr Mat Min Exi Machines Accessed 8 | . 7 . 1 Terminals 6 | . 6 . . Fabricators . | . . . . Repair Stations . | . . . . Recycling Units 1 | . 1 . . Scanalyzers . | . . . . Garrison Access . | . . . . Total Hacks 23 | . 22 . 1 Successful 15 | . 14 . 1 Failed 8 | . 8 . . Catastrophic 1 | . 1 . . Database Lockouts . | . . . . Manual 2 | . 2 . . Terminals 20 | . 20 . . Fabricators . | . . . . Repair Stations . | . . . . Recycling Units 2 | . 2 . . Scanalyzers . | . . . . Garrison Access . | . . . . Terminal Hacks 14 | . 13 . 1 Record 1 | . . . 1 Robot Analysis 1 | . 1 . . Prototype ID Bank 3 | . 3 . . Level Access Points 1 | . 1 . . Alert Level 1 | . 1 . . Locate Traps 3 | . 3 . . Security Status 1 | . 1 . . Hauler Manifests 1 | . 1 . . Registered Components 1 | . 1 . . Zone Layout 1 | . 1 . . Fabricator Hacks . | . . . . Repair Station Hacks . | . . . . Recycling Unit Hacks . | . . . . Scanalyzer . | . . . . Garrison Access Hacks . | . . . . Unauthorized Hacks 1 | . 1 . . Terminals . | . . . . Fabricators . | . . . . Repair Stations . | . . . . Recycling Units 1 | . 1 . . Tunnel 1 | . 1 . . Scanalyzers . | . . . . Garrison Access . | . . . . Data Cores Recovered . | . . . . Used . | . . . . Hacking Detections 6 | . 6 . . Full Trace Events 2 | . 2 . . Feedback Events . | . . . . Feedback Blocked . | . . . . Robot Schematics Acquired . | . . . . Robots Built . | . . . . Authchips . | . . . . Time . | . . . . Total Robot Build Rating . | . . . . Part Schematics Acquired . | . . . . Parts Built . | . . . . Authchips . | . . . . Time . | . . . . Total Part Build Rating . | . . . . Parts Repaired . | . . . . Time . | . . . . Parts Recycled . | . . . . Recycled Matter . | . . . . Retrieved Matter . | . . . . Retrieved Components . | . . . . Parts Scanalyzed . | . . . . Part Schematics Acquired . | . . . . Parts Damaged . | . . . . Bothacking | -11 -10 -10 -10 ------------ Run | Scr Mat Min Exi Used RIF Installer . | . . . . Robots Hacked . | . . . . Non-combat . | . . . . Combat . | . . . . Robot Hacks Applied . | . . . . Relay Couplers Released . | . . . . Robots Rewired . | . . . . Allies Hacked . | . . . . Hacks Repelled . | . . . . Allies | -11 -10 -10 -10 -------- Run | Scr Mat Min Exi Total Allies 1 | . . 1 . Largest Group 1 | . . 1 1 Highest-Rated Group 31 | . . 31 31 Highest-Rated Ally 31 | . . 31 31 Total Orders . | . . . . Ally Attacks . | . . . . Total Damage . | . . . . Kills . | . . . . Allies Corrupted . | . . . . Allies Melted . | . . . . Intel | -11 -10 -10 -10 ------- Run | Scr Mat Min Exi Robot Analysis Total 1 | . 1 . . Derelict Logs Recovered 2 | . . 2 . Drone Launches . | . . . . Drone Recoveries . | . . . . Exploration | -11 -10 -10 -10 ------------- Run | Scr Mat Min Exi Turns Passed 2291 | 3 934 638 716 Spaces Moved 1191 | 3 479 340 369 Core . | . . . . Treads 931 | . 415 340 176 Legs 67 | 3 64 . . Wheels 193 | . . . 193 Hover . | . . . . Flight . | . . . . Fastest Speed 120 | 120 120 160 120 Average Speed 151 | 120 154 160 139 Slowest Speed 240 | 120 160 240 160 Overloaded Moves . | . . . . Propulsion Burnouts . | . . . . Robots Hopped . | . . . . Cave-ins Triggered . | . . . . Exploration Rate (%) 43 | 2 60 61 49 Regions Visited 3 Branch Regions 2 Pre-discovered Areas 3 | . 1 1 1 Known Exits Taken . | . . . . Unknown Exits Taken 3 | 1 1 1 . Scrap Searched 1 | . . 1 . Spaces Dug . | . . . . Terrain Destroyed 67 | . . 51 16 Melee . | . . . . Projectile . | . . . . AOE 67 | . . 51 16 Terrain Rammed . | . . . . Walls Destroyed . | . . . . Machines Disabled . | . . . . Actions | -11 -10 -10 -10 --------- Run | Scr Mat Min Exi Total 1499 | 2 592 394 511 Wait 71 | . 17 13 41 Move 1188 | 2 478 339 369 Hop . | . . . . Pick Up 27 | . 19 2 6 Fast Attach . | . . . . Attach 13 | . 5 2 6 Detach . | . . . . Swap 24 | . 8 9 7 Drop 22 | . 10 3 9 Fire 111 | . 55 26 30 Melee . | . . . . Ram . | . . . . Kick . | . . . . Crush 43 | . . . 43 Escape Stasis . | . . . . Rewire . | . . . . Trap . | . . . . Miscellaneous . | . . . . Route ------- -11/Scrapyard -10/Materials (discovered 4 exits: *Mat x3 / [*Min]) -10/Mines (discovered 3 exits: *Mat x2 / *Exi) -10/Exiles History --------- Turn | Location | Event 1 | -11/Scrapyard | Discovered new exit (range 0) 4 | -11/Scrapyard | Entered Materials 240 | -10/Materials | Discovered new exit (range 16) 325 | -10/Materials | Build established: Mutant 341 | -10/Materials | Identified exit to Materials 351 | -10/Materials | Discovered new exit (range 12) 938 | -10/Materials | Entered Mines 1283 | -10/Mines | Learned 2 Materials zone layouts 1309 | -10/Mines | Learned location of Zion (-7) 1418 | -10/Mines | Discovered exit to Materials (range 3) 1444 | -10/Mines | Discovered exit to Materials (range 9) 1472 | -10/Mines | Escorted by a lone wolf Derelict 1474 | -10/Mines | Build established: Scavenger-Mutant 1564 | -10/Mines | Deemed a non-threat by the Exiles lab entrance 1564 | -10/Mines | Discovered new exit (range 5) 1576 | -10/Mines | Entered Exiles 1576 | -10/Exiles | Accompanied by 1 ally 1615 | -10/Exiles | Met 8R-AWN 1643 | -10/Exiles | Met EX-HEX 1709 | -10/Exiles | Met EX-DEC 2074 | -10/Exiles | Attacked by the Exiles 2149 | -10/Exiles | Build established: Mutant 2250 | -10/Exiles | Core integrity fell below 50% 2280 | -10/Exiles | Core integrity fell below 20% 2292 | -10/Exiles | Destroyed by 8R-AWN with 8R-AWN's Boregun Last Messages --------------- 02283_ The unstable cave ceiling collapses. 02283_ 4 Matter crushed. 02283_ Slammed into 8R-AWN. 02283_ Penetrated by HV Slug. 02283_ HV Slug penetrates Earth. 02283_ Penetrated by HV Slug. 02283_ Critical hit (Destroy). 02283_ Lgt. Treads destroyed. 02283_ HV Slug penetrates Earth. 02285_ Slammed into 8R-AWN. 02286_ Earth collapses. 02287_ Penetrated by HV Slug. 02287_ HV Slug penetrates Earth. 02287_ Penetrated by HV Slug. 02287_ HV Slug penetrates Earth. 02288_ Acquired 4 matter. 02288_ Slammed into 8R-AWN. 02289_ Acquired 3 matter. 02290_ Slammed into 8R-AWN. 02292_ Penetrated by HV Slug. Map ----- +----------------------------------------------------+ | ?????????????????????????????????????????????????? | | ?????????????????????????????????????????????????? | | ?????????????? ??????????????#######?????????????? | | ????????????? ######???????# "#?????????????? | | ????????????? #""#??????# #?????????????? | | ????????????? ?? ???# "#?????????????? | | ?????????????" ## ??## ""#????????????## | | ?????????????" #"###" ""#???????????? | | ??????????????# ##" ""#????????????" | | ???????????????# #" ###????????????" | | ??????????????????# ######????????"" | | ????????????????????## ## #????????"" | | ?????????????????????##" # #???????? | | ???????????????######## # #?????????" | | ???????????????# !!"" " % #?????????# | | ???????????# #! %! ## #####???### | | ?????????????# "! %!%# # ""#####X# | | ???????????????#! %!"" | | ???????????????# !"""" "#%##### # % | | ???????????????#######"##%#???#### * | | ?????????????????????# ##%#??????### | | ?????????????????????# ##%#????????### | | ?????????????????????# #%%#??????????## | | ?????????????????????# ####???????????## | | ?????????????????????######????????????## | | ????????????????????????#@#?????????????#""" | | ????????????????????????#g#?????????????#" | | ????????????????????????#%#????????????#"" | | ????????????????????????#%#????????????#""" | | ????????????????????????#%#????????????""" | | ????????????????????????#%#????????????""" | | ????????????????????????# #?????????????" | | ????????????????????????# #?????????????"" | | ????????????????????????# #????????????"" | | ????????????????????????# #?????????????"" | | ????????????????????????# #??????????????""" | | ????????????????????????? ????????????????? | | ?????????????????????????#?????????????????? | | ?????????????????????????????????????????????????? | | ?????????????????????????????????????????????????? | | ?????????????????????????????????????????????????? | | ?????????????????????????????????????????????????? | | ?????????????????????????????????????????????????? | | ?????????????????????????????????????????????????? | | ?????????????????????????????????????????????????? | | ?????????????????????????????????????????????????? | | ?????????????????????????????????????????????????? | | ?????????????????????????????????????????????????? | | ?????????????????????????????????????????????????? | | ?????????????????????????????????????????????????? | +----------------------------------------------------+ Best States ------------- Heat Dissipation 25 Energy Generation 12 Energy Capacity 265 Matter Stores 300 Matter Capacity 300 Sight Range 16 Terrain Scan Density 10 Armor Coverage 225 Utility Shielding 33 Evasion (%) 55 Recoil Reduction 2 Item Schematics ----------------- None Robot Schematics ------------------ None Fabricated ------------ Nothing Alien Tech Used ----------------- None Achievements -------------- None Challenges ------------ None Game ------ Seed HypervelocityLargeStabilizer Manual? 0 Play Time 00:14:17 Cumulative 395.4 hours Start 2021.10.23 @ 00:34:34 End 2021.10.23 @ 00:45:33 Sessions 1 Manual Loads 0 Difficulty Rogue Special Mode None Game No. 405 Rogue 405 Adventurer 0 Explorer 0 Win Type - Total 7 Types 6/0/0/1/0/0/0/0/0 Lore% 79 Gallery% 91 Achievement% 69 Wizard Run 0 Options --------- ASCII 0 Keyboard 0 Movement Mouse Keybinds 1 Fullscreen 2 Font 24/Smallcaps Map View 76x50 Tactical HUD 1 Map Filters NONE Filters NONE Steam 1 RUN: 30989dbe-5e18-47e6-9ec7-4aa044cdd018